[Event "WSTCC-65 2024"]
[Site "Krakow"]
[Date "2024.07.04"]
[Round "3.5"]
[White "Sanetra, Piotr"]
[Black "Vogt, Lothar"]
[Result "1/2-1/2"]
[ECO "B22"]
[WhiteElo "2024"]
[BlackElo "2292"]
[Annotator "TA"]
[PlyCount "45"]
[EventDate "2024.07.01"]
[EventType "team-tourn"]
[EventCountry "POL"]
[SourceTitle "playchess.com"]
[Source "ChessBase"]
[SourceQuality "1"]
[TimeControl "40/5400+30:1800+30"]

{[%evp 20,45,16,17,24,36,24,0,0,0,0,0,115,120,115,117,117,106,119,120,126,122,119,125,127,99,117,93]} 1. e4 {[%emt 0:00:03]} c5 {[%emt 0:00:01]} 2. c3 {[%emt 0:00:12]} d5 {[%emt 0:00:14]} 3. exd5 {[%emt 0:00:08]} Qxd5 {[%emt 0:00:09]} 4. d4 {[%emt 0:00:09]} Nf6 {[%emt 0:00:07]} 5. Nf3 {[%emt 0:00:14]} e6 {[%emt 0:00:31]} 6. Bd3 {[%emt 0:00:54]} Nc6 {[%emt 0:03:57]} 7. O-O {[%emt 0:00:48]} cxd4 {[%emt 0:01:33]} 8. cxd4 {[%emt 0:00:12]} Be7 {[%emt 0:00:14]} 9. Nc3 {[%emt 0:00:22]} Qd6 {[%emt 0:00:09]} 10. Bg5 {[%emt 0:03:10]} O-O {[%emt 0:00:42]} 11. Rc1 {[%emt 0:01:56][%cal Ba1c1,Bc1c7,Bc7e7][%mdl 32]} Rd8 {[%emt 0:08:06]} 12. Nb5 {[%emt 0:02:38]} Qd7 {[%emt 0:00:37]} 13. Ne5 {[%emt 0:01:24]} (13. Bb1 {vereinfacht} g6 14. Qe2 Nd5 15. Bxe7 Qxe7 16. Rfd1) 13... Nxe5 {[%emt 0:03:46] Die Stellung ist ausgeglichen.} 14. Rc7 {[%emt 0:00:18]} Qd5 {[%emt 0:33:58]} 15. dxe5 {[%emt 0:09:13]} (15. Rxe7 $2 Nxd3 (15... Qxa2 $2 16. dxe5 $18) 16. Bxf6 Qxb5 $19) 15... Qxd3 {[%emt 0:00:53]} (15... Qxe5 $11 16. Rxe7 Kf8) 16. Qxd3 $16 {[%emt 0:00:26] Weiß steht besser.} Rxd3 {[%emt 0:00:03]} 17. Rxe7 {[%emt 0:00:22] Weiß hat aktiveres Spiel.} Bd7 {[%emt 0:00:21] Schwarz hat schwache schwarze Felder} 18. Nd6 {[%emt 0:33:46][%cal Bb5d6,Bd6f7,Bf7h6][%mdl 32]} ({Ein No Go ist} 18. exf6 $6 Bxb5 19. Rc1 (19. Rxb7 $2 {zu gefräßig.} Ba6 $17) 19... Rad8 $11) 18... Bc6 {[%emt 0:00:24]} 19. Bxf6 {[%emt 0:01:07]} gxf6 {[%emt 0:00:32]} 20. Nxf7 {[%emt 0:00:28]} (20. Nxb7 fxe5 21. Rc7 Bxb7 22. Rxb7 a5 $18) 20... Rf8 {[%emt 0:09:21]} 21. Nh6+ {[%emt 0:02:55]} Kh8 {[%emt 0:00:01]} 22. Rxe6 {[%emt 0:00:56]} fxe5 {[%emt 0:00:14]} 23. Rxe5 {[%emt 0:04:43] Gewichteter Fehlerwert: Weiß=0.07 (makellos) /Schwarz=0.20 (präzise) .  Fehler:       	---       	Schwarz=1     OK:         	Weiß=6     	Schwarz=5     Bester:       	Weiß=2     	Schwarz=1} 1/2-1/2

[Event "WSTCC-65 2024"]
[Site "Krakow"]
[Date "2024.07.04"]
[Round "3.6"]
[White "Bykhovsky, Avigdor"]
[Black "Messa, Roberto"]
[Result "1-0"]
[ECO "D59"]
[WhiteElo "2335"]
[BlackElo "2262"]
[Annotator "RC"]
[PlyCount "97"]
[EventDate "2024.07.01"]
[EventType "team-tourn"]
[EventCountry "POL"]
[SourceTitle "playchess.com"]
[Source "ChessBase"]
[SourceQuality "1"]
[TimeControl "40/5400+30:1800+30"]

1. d4 {[%emt 0:00:04]} d5 {[%emt 0:00:05]} 2. c4 {[%emt 0:00:16]} e6 {[%emt 0:00:05]} 3. Nf3 {[%emt 0:00:22]} Nf6 {[%emt 0:00:06]} 4. Nc3 {[%emt 0:00:45]} Be7 {[%emt 0:00:20]} 5. Bg5 {[%emt 0:04:51]} O-O {[%emt 0:00:59]} 6. e3 {[%emt 0:00:22]} h6 {[%emt 0:00:40]} 7. Bh4 {[%emt 0:01:40]} b6 {[%emt 0:00:42]} 8. cxd5 Nxd5 {[%emt 0:00:36]} 9. Bxe7 {[%emt 0:05:37]} Qxe7 {[%emt 0:01:08]} 10. Nxd5 {[%emt 0:01:37]} exd5 {[%emt 0:00:05]} 11. Be2 {[%emt 0:00:18]} Be6 {[%emt 0:02:15]} 12. O-O {[%emt 0:01:43]} c5 {[%emt 0:00:13]} 13. dxc5 {[%emt 0:24:01]} bxc5 {[%emt 0:00:05]} 14. Rc1 {[%emt 0:00:26]} Nd7 {[%emt 0:02:12]} 15. Qc2 {[%emt 0:04:20]} Rab8 {[%emt 0:04:26]} 16. b3 {[%emt 0:02:17]} Rfc8 {[%emt 0:01:56]} 17. e4 {[%emt 0:02:52]} d4 {[%emt 0:05:26]} 18. Nd2 {[%emt 0:02:40]} Bd5 {[%emt 0:20:36]} 19. Bd3 {[%emt 0:05:15]} Bb7 {[%emt 0:01:16]} 20. f4 {[%emt 0:02:12]} Nf6 {[%emt 0:02:00]} 21. h3 {[%emt 0:01:04]} Rc7 {[%emt 0:05:17]} 22. Rce1 {[%emt 0:04:31]} Re8 {[%emt 0:03:10]} 23. Kh2 {[%emt 0:01:14]} Kh8 {[%emt 0:02:59]} 24. Qb1 {[%emt 0:03:53]} Qd8 {[%emt 0:01:32]} 25. Nc4 {[%emt 0:06:21]} Ree7 {[%emt 0:13:05]} 26. g3 {[%emt 0:06:43]} Kg8 {[%emt 0:01:18]} 27. Rf2 {[%emt 0:03:22]} Ba8 {[%emt 0:03:08]} 28. e5 {[%emt 0:05:04]} Nd5 {[%emt 0:00:13]} 29. Qd1 {[%emt 0:00:25]} Bc6 {[%emt 0:22:29]} 30. Qg4 {[%emt 0:03:26]} Ne3 {[%emt 0:01:06]} 31. Nxe3 {[%emt 0:01:16]} dxe3 {[%emt 0:00:03]} 32. Rxe3 {[%emt 0:00:19]} Rcd7 {[%emt 0:01:31]} 33. Qf5 {[%emt 0:03:10]} g6 {[%emt 0:02:00]} 34. Qf6 {[%emt 0:00:01]} Rxd3 {[%emt 0:02:24]} 35. Rxd3 {[%emt 0:00:09]} Qxd3 {[%emt 0:00:06]} 36. Qxc6 {[%emt 0:00:27]} Qd4 {[%emt 0:00:35]} 37. Rc2 {[%emt 0:01:15]} Rd7 {[%emt 0:01:34]} 38. e6 {[%emt 0:00:55]} fxe6 {[%emt 0:00:16]} 39. Qxe6+ {[%emt 0:00:28]} Kh7 {[%emt 0:00:09]} 40. f5 {[%emt 0:01:24]} gxf5 {[%emt 0:00:49]} 41. Qxf5+ {[%emt 0:30:11]} Kg7 {[%emt 0:30:22]} 42. Rf2 {[%emt 0:00:38]} Qd6 {[%emt 0:00:00]} 43. h4 {[%emt 0:00:00]} a5 {[%emt 0:00:00]} 44. h5 {[%emt 0:00:00]} a4 {[%emt 0:00:00]} 45. bxa4 {[%emt 0:00:00]} Rc7 {[%emt 0:00:00]} 46. Rf4 {[%emt 0:00:00]} Kh8 {[%emt 0:00:00]} 47. Re4 {[%emt 0:00:00]} Qd2+ {[%emt 0:00:00]} 48. Kh3 {[%emt 0:00:00]} Qd7 {[%emt 0:00:00]} 49. Re6 {[%emt 0:00:00]} 1-0

[Event "WSTCC-65 2024"]
[Site "Krakow"]
[Date "2024.07.04"]
[Round "3.6"]
[White "Miltner, Arndt"]
[Black "Kasperek, Wieslaw"]
[Result "1/2-1/2"]
[ECO "B22"]
[WhiteElo "2259"]
[BlackElo "2009"]
[Annotator "TA"]
[PlyCount "110"]
[EventDate "2024.07.01"]
[EventType "team-tourn"]
[EventCountry "POL"]
[SourceTitle "playchess.com"]
[Source "ChessBase"]
[SourceQuality "1"]
[TimeControl "40/5400+30:1800+30"]

{[%evp 9,110,30,106,117,114,117,175,175,224,169,229,223,227,215,240,135,142,127,135,134,124,112,237,153,209,217,454,439,400,387,854,457,428,336,362,334,353,339,316,266,267,141,142,118,135,123,200,109,186,0,313,145,120,135,116,127,142,80,112,96,80,53,50,50,47,7,5,5,12,12,13,24,39,40,41,41,88,0,0,0,0,0,0,0,0,0,0,0,0,0,0,0,4,0,0,0,0,0,0,0,0,0,196]} 1. e4 {[%emt 0:00:06]} c5 {[%emt 0:00:13]} 2. c3 {[%emt 0:00:19][%cal Bc2c3,Bc3d4,Bd4d5][%mdl 32]} Qa5 {[%emt 0:00:10]} 3. Nf3 {[%emt 0:00:49]} Nc6 {[%emt 0:00:07]} 4. Bc4 {[%emt 0:01:25]} e6 {[%emt 0:03:26]} 5. O-O {[%emt 0:02:23]} g6 {[%emt 0:02:32]} (5... b5 $11 6. Be2 Bb7) 6. d4 $16 {[%emt 0:03:28]} cxd4 {[%emt 0:00:27]} 7. cxd4 {[%emt 0:00:19] Threatens to win with d5.} Bg7 {[%emt 0:00:12]} (7... d5 $16) 8. Nc3 $18 {[%emt 0:03:29] And now Bf4 would win. White is clearly better.} a6 {[%emt 0:00:22]} (8... Nge7 {was worth a try.}) 9. Be3 {[%emt 0:06:10]} Nge7 {[%emt 0:00:35]} (9... Nf6 $142 10. e5 Ng4) 10. d5 {[%emt 0:09:25]} Ne5 {[%emt 0:00:44]} 11. Nxe5 {[%emt 0:00:58]} Bxe5 {[%emt 0:00:05]} 12. Bd4 {[%emt 0:02:01]} (12. Rc1 $18) 12... Bxd4 $16 {[%emt 0:02:53]} 13. Qxd4 {[%emt 0:00:16]} O-O {[%emt 0:00:07] Black is weak on the dark squares} 14. Rfd1 {[%emt 0:05:54]} b5 {[%emt 0:06:52]} 15. Bb3 $36 {[%emt 0:00:43][%mdl 2048] Keeping Black busy.} Rb8 {[%emt 0:00:24]} (15... b4 $16) 16. e5 {[%emt 0:12:50]} Nf5 {[%emt 0:01:41]} (16... exd5 $16 {is a better defense.} 17. Qc5 (17. Bxd5 b4 $16) (17. Nxd5 Nxd5 18. Bxd5 Bb7 $16) 17... Qd8 18. Bxd5 (18. Nxd5 Nxd5 19. Bxd5 Re8 $14) 18... Rb6) 17. Qf4 $18 {[%emt 0:00:21]} h5 {[%emt 0:04:56]} (17... Qd8 18. dxe6 fxe6 19. Bxe6+ Kh8) 18. Ne4 {[%emt 0:01:08]} Kg7 {[%emt 0:01:07]} 19. Nf6 {[%emt 0:02:37]} Rb7 $2 {[%emt 0:06:12]} (19... Rh8 20. Bc2 b4 21. Bxf5 exf5) 20. d6 {[%emt 0:04:15][%cal Of6h5]} Rh8 {[%emt 0:05:36]} 21. Bc2 {[%emt 0:04:59]} b4 {[%emt 0:01:05]} 22. Bxf5 {[%emt 0:04:38]} exf5 {[%emt 0:00:14]} 23. Qd4 {[%emt 0:04:25][%cal Oe5e6] aiming for e6!} Qb6 {[%emt 0:08:56]} 24. Qxb6 {[%emt 0:01:00]} Rxb6 {[%emt 0:00:11]} 25. f4 {[%emt 0:01:46]} (25. Rac1 $18) 25... Rd8 $16 {[%emt 0:01:53]} 26. Rac1 {[%emt 0:06:41] White is much more active.} Bb7 {[%emt 0:00:08]} 27. Rc5 {[%emt 0:00:24]} (27. Rc7 Bc6 28. b3 Rbb8 $16) 27... Bc6 {[%emt 0:00:55]} (27... h4 $16 {was called for.} 28. Rc7 Bc6) 28. Rd4 {[%emt 0:00:12]} (28. h4 $18) 28... Ra8 {[%emt 0:02:32]} (28... h4 $16 29. Kf2 Rbb8) 29. Nd5 $2 {[%emt 0:02:41]} (29. h4 $18) 29... Rb5 $2 {[%emt 0:05:10][%mdl 8192] [#]} (29... Bxd5 $11 30. Rdxd5 f6) 30. Rxb5 {[%emt 0:00:33]} (30. Rxc6 $1 $18 {and the rest is easy.} dxc6 31. Nc7 (31. Nxb4 $2 {loses.} c5 $19)) 30... axb5 {[%emt 0:00:14]} 31. Nxb4 $18 {[%emt 0:00:23][%mdl 4096] Endgame. KRB-KRN} Be4 {[%emt 0:00:20]} 32. a3 {[%emt 0:00:43]} Rc8 {[%emt 0:00:10][%cal Og6g5]} 33. Rd2 {[%emt 0:02:17]} ({White should try} 33. h4) 33... h4 {[%emt 0:00:26][%cal Og6g5]} 34. Kf2 {[%emt 0:00:58]} g5 {[%emt 0:00:42]} 35. Ke3 {[%emt 0:00:59]} f6 {[%emt 0:07:25]} 36. exf6+ {[%emt 0:02:43]} Kxf6 {[%emt 0:00:15]} 37. Nd5+ {[%emt 0:00:38]} Bxd5 $1 {[%emt 0:03:12]} 38. Rxd5 $11 {[%emt 0:00:09] KR-KR} Rc2 {[%emt 0:00:13]} 39. fxg5+ {[%emt 0:00:44]} Kxg5 {[%emt 0:00:09]} 40. Rd2 {[%emt 0:08:45]} Rc6 {[%emt 0:02:26]} 41. h3 {[%emt 0:30:42]} Kf6 {[%emt 0:30:33]} 42. Kf3 {[%emt 0:01:50]} Ke5 {[%emt 0:00:59] [#] Prevents Rd4.} (42... Rc4 $14) 43. g3 {[%emt 0:00:35]} ({Better is} 43. Rd3 $1 $16) 43... hxg3 {[%emt 0:00:50] The position is equal.} 44. Kxg3 {[%emt 0:00:13]} Rc1 {[%emt 0:00:10]} 45. h4 {[%emt 0:00:56]} Rg1+ {[%emt 0:00:22]} 46. Kh2 {[%emt 0:02:27]} Rg8 {[%emt 0:01:31]} 47. Kh3 {[%emt 0:00:33]} f4 {[%emt 0:00:29] Strongly threatening ...f3.} 48. Rg2 {[%emt 0:01:51]} Rf8 {[%emt 0:00:27]} 49. Rg5+ {[%emt 0:00:00]} Ke4 $1 {[%emt 0:00:00] Hoping for ...f3.} 50. Kg2 {[%emt 0:00:00][%cal Og5g7]} (50. Rxb5 $2 {too greedy.} f3 51. Rc5 f2 52. Rc4+ Ke5 53. Rc5+ Kxd6 $19 (53... Kd4 $2 54. Rc1 $19)) 50... Rc8 {[%emt 0:00:00]} 51. Rxb5 {[%emt 0:00:00]} Rc2+ {[%emt 0:00:00]} 52. Kh3 {[%emt 0:00:00]} Rc8 {[%emt 0:00:00]} 53. Rb4+ {[%emt 0:00:00]} Ke3 {[%emt 0:00:00] ...f3 is the strong threat.} 54. Rb3+ {[%emt 0:00:00]} Ke4 {[%emt 0:00:00]} 55. Rb4+ Ke5 $2 {Blacks defense is rewarded with a draw.   Weighted Error Value: White=0.41/Black=0.29 (precise) .  Loses game:     	---       	Black=2      Missed win:     	White=2     	---        Mistake:       	White=5     	Black=10     Inaccurate:     	White=4     	Black=1      OK:         	White=15    	Black=17     Best:        	White=3     	Black=5      Strong:       	---       	Black=2} (55... Ke3 $11 {and Black stays safe.} 56. Rb7 f3 57. Rxd7 f2 58. Re7+ Kf3 59. Rf7+ Ke2) 1/2-1/2

[Event "WSTCC-65 2024"]
[Site "Krakow"]
[Date "2024.07.04"]
[Round "3.6"]
[White "Kerr, Grant"]
[Black "Orton, Stephen L A"]
[Result "0-1"]
[ECO "A01"]
[WhiteElo "1769"]
[BlackElo "2115"]
[Annotator "NA RC"]
[PlyCount "79"]
[EventDate "2024.07.01"]
[EventType "team-tourn"]
[EventCountry "POL"]
[SourceTitle "playchess.com"]
[Source "ChessBase"]
[SourceQuality "1"]
[TimeControl "40/5400+30:1800+30"]

1. b3 {[%emt 0:00:03]} e5 {[%emt 0:00:13]} 2. Bb2 {[%emt 0:00:06]} Nc6 {[%emt 0:00:15]} 3. c4 {[%emt 0:00:23]} g6 {[%emt 0:00:53]} 4. e3 {[%emt 0:02:38]} Bg7 {[%emt 0:01:34]} 5. Nf3 {[%emt 0:02:41]} Nge7 {[%emt 0:03:19]} 6. Be2 {[%emt 0:00:35]} O-O {[%emt 0:04:21]} 7. d3 {[%emt 0:03:01]} d5 {[%emt 0:05:46]} 8. cxd5 Nxd5 9. Qd2 {[%emt 0:18:19]} Be6 {[%emt 0:04:12]} 10. Nc3 {[%emt 0:13:21]} f5 {[%emt 0:02:43]} 11. Rc1 {[%emt 0:14:51]} Qe7 {[%emt 0:05:49]} 12. O-O {[%emt 0:09:48]} Rad8 {[%emt 0:11:37]} 13. Nxd5 {[%emt 0:02:21]} Bxd5 {[%emt 0:00:56]} 14. Qc2 {[%emt 0:02:20]} Rf7 {[%emt 0:05:25]} 15. Qc5 {[%emt 0:06:42]} e4 {[%emt 0:14:35]} 16. dxe4 {[%emt 0:08:28]} Bxb2 {[%emt 0:08:12]} 17. exd5 {[%emt 0:01:24]} Bxc1 {[%emt 0:00:59]} 18. Qxc1 {[%emt 0:01:07]} Ne5 {[%emt 0:01:30]} 19. Rd1 {[%emt 0:00:45]} Nxf3+ {[%emt 0:04:45]} 20. Bxf3 {[%emt 0:00:01]} Rd6 {[%emt 0:01:00]} 21. g3 {[%emt 0:00:44]} Qf6 {[%emt 0:03:08]} 22. Qc2 {[%emt 0:01:06]} g5 {[%emt 0:04:39]} 23. Qe2 {[%emt 0:01:34]} g4 {[%emt 0:04:11]} 24. Bg2 {[%emt 0:00:07]} h5 {[%emt 0:00:27]} 25. Qc4 {[%emt 0:00:31]} Kg7 {[%emt 0:01:50]} 26. Qf4 {[%emt 0:00:33]} c6 {[%emt 0:01:23]} 27. e4 {[%emt 0:03:39]} fxe4 {[%emt 0:00:38]} 28. Qxf6+ {[%emt 0:00:32]} Kxf6 {[%emt 0:00:49]} 29. Bxe4 {[%emt 0:00:14]} Rfd7 {[%emt 0:00:55]} 30. f4 {[%emt 0:00:48]} gxf3 {[%emt 0:02:04]} 31. Bxf3 {[%emt 0:00:01]} Kg5 {[%emt 0:00:16]} 32. Kg2 {[%emt 0:00:53]} cxd5 {[%emt 0:00:12]} 33. Rd4 {[%emt 0:00:10]} Rc6 {[%emt 0:01:18]} 34. h4+ {[%emt 0:00:22]} Kh6 {[%emt 0:00:31]} 35. a4 {[%emt 0:01:53]} Rc5 {[%emt 0:02:58]} 36. Kf2 {[%emt 0:01:07]} Rf7 {[%emt 0:00:22]} 37. Rd3 {[%emt 0:00:39]} d4 {[%emt 0:00:47]} 38. Rxd4 {[%emt 0:01:53]} Rc2+ {[%emt 0:00:20]} 39. Ke3 {[%emt 0:00:12]} Rc3+ {[%emt 0:00:06]} 40. Ke2 0-1

[Event "WSTCC-65 2024"]
[Site "Krakow"]
[Date "2024.07.04"]
[Round "3.7"]
[White "Cocozza, Mario"]
[Black "Maryasin, Boris"]
[Result "0-1"]
[ECO "B31"]
[WhiteElo "2206"]
[BlackElo "2209"]
[Annotator "RC"]
[PlyCount "84"]
[EventDate "2024.07.01"]
[EventType "team-tourn"]
[EventCountry "POL"]
[SourceTitle "playchess.com"]
[Source "ChessBase"]
[SourceQuality "1"]
[TimeControl "40/5400+30:1800+30"]

1. e4 {[%emt 0:00:05]} c5 {[%emt 0:00:19]} 2. Nf3 {[%emt 0:00:09]} Nc6 {[%emt 0:00:22]} 3. Bb5 {[%emt 0:00:10]} g6 {[%emt 0:00:20]} 4. Bxc6 {[%emt 0:00:12]} dxc6 {[%emt 0:00:08]} 5. d3 {[%emt 0:00:07]} Bg7 {[%emt 0:00:09]} 6. h3 {[%emt 0:00:09]} Qc7 {[%emt 0:00:59]} 7. O-O {[%emt 0:00:33]} e5 {[%emt 0:01:10]} 8. Be3 {[%emt 0:12:10]} b6 {[%emt 0:00:17]} 9. Nc3 {[%emt 0:02:59]} Ne7 {[%emt 0:01:40]} 10. Qd2 {[%emt 0:08:16]} h6 {[%emt 0:02:36]} 11. Nh2 {[%emt 0:08:22]} g5 {[%emt 0:01:44]} 12. a3 {[%emt 0:03:54]} Be6 {[%emt 0:03:02]} 13. b4 {[%emt 0:03:37]} c4 {[%emt 0:00:41]} 14. dxc4 {[%emt 0:00:13]} Bxc4 {[%emt 0:00:24]} 15. Rfd1 {[%emt 0:00:08]} Rd8 {[%emt 0:02:13]} 16. Qxd8+ {[%emt 0:03:35]} Qxd8 {[%emt 0:00:12]} 17. Rxd8+ {[%emt 0:00:02]} Kxd8 {[%emt 0:00:02]} 18. a4 {[%emt 0:00:12]} Kc7 {[%emt 0:02:01]} 19. a5 {[%emt 0:01:43]} Nc8 {[%emt 0:01:26]} 20. axb6+ {[%emt 0:01:50]} axb6 {[%emt 0:00:11]} 21. Nf3 {[%emt 0:00:17]} Rd8 {[%emt 0:02:56]} 22. Nd2 {[%emt 0:04:56]} Be6 {[%emt 0:00:47]} 23. Na4 {[%emt 0:12:00]} Bf8 {[%emt 0:03:11]} 24. c3 {[%emt 0:00:16]} Kb7 {[%emt 0:12:31]} 25. Kf1 {[%emt 0:02:56]} f5 {[%emt 0:08:06]} 26. exf5 {[%emt 0:06:30]} Bxf5 {[%emt 0:00:35]} 27. Ke1 {[%emt 0:01:43]} Bc2 {[%emt 0:12:56]} 28. Nc4 {[%emt 0:09:35]} Bxa4 {[%emt 0:07:47]} 29. Rxa4 {[%emt 0:00:03]} b5 {[%emt 0:03:05]} 30. Na5+ {[%emt 0:00:30]} Kc7 {[%emt 0:00:11]} 31. Ra2 {[%emt 0:01:07]} Rd3 {[%emt 0:01:09]} 32. Rc2 {[%emt 0:04:38]} e4 {[%emt 0:00:36]} 33. Ke2 {[%emt 0:02:09]} Nb6 {[%emt 0:04:54]} 34. f3 {[%emt 0:06:54]} Nd5 {[%emt 0:02:03]} 35. Bd2 {[%emt 0:01:37]} Nf4+ {[%emt 0:00:56]} 36. Bxf4+ {[%emt 0:00:15]} gxf4 {[%emt 0:00:03]} 37. fxe4 {[%emt 0:00:15]} Re3+ {[%emt 0:00:11]} 38. Kd1 {[%emt 0:04:01]} Kb6 {[%emt 0:03:23]} 39. e5 {[%emt 0:01:15]} c5 {[%emt 0:01:40]} 40. e6 {[%emt 0:00:28]} cxb4 {[%emt 0:00:42]} 41. Nb3 {[%emt 0:05:30]} bxc3 {[%emt 0:01:24]} 42. Nd4 {[%emt 0:00:16]} Rd3+ {[%emt 0:00:20]} 0-1

[Event "WSTCC-65 2024"]
[Site "Krakow"]
[Date "2024.07.04"]
[Round "3.7"]
[White "Hewson, Brian W R"]
[Black "Booth, Anthony"]
[Result "1-0"]
[ECO "A48"]
[WhiteElo "2042"]
[BlackElo "1742"]
[Annotator "NA RC"]
[PlyCount "101"]
[EventDate "2024.07.01"]
[EventType "team-tourn"]
[EventCountry "POL"]
[SourceTitle "playchess.com"]
[Source "ChessBase"]
[SourceQuality "1"]
[TimeControl "40/5400+30:1800+30"]

1. d4 {[%emt 0:00:11]} Nf6 {[%emt 0:00:10]} 2. Nf3 {[%emt 0:00:39]} g6 {[%emt 0:01:02]} 3. c4 {[%emt 0:00:20]} d5 {[%emt 0:01:54]} 4. cxd5 {[%emt 0:02:25]} Qxd5 {[%emt 0:00:56]} 5. Nc3 {[%emt 0:00:21]} Qa5 {[%emt 0:02:15]} 6. e3 {[%emt 0:05:28]} c6 {[%emt 0:00:45]} 7. Bc4 {[%emt 0:05:09]} Bg7 {[%emt 0:04:45]} 8. Ne5 {[%emt 0:09:57]} O-O {[%emt 0:02:51]} 9. Qb3 {[%emt 0:00:42]} e6 {[%emt 0:03:31]} 10. Bd2 {[%emt 0:03:48]} Qc7 {[%emt 0:01:28]} 11. Rc1 {[%emt 0:03:04]} Nd5 {[%emt 0:10:32]} 12. Bxd5 {[%emt 0:14:04]} Bxe5 {[%emt 0:00:43]} 13. Bf3 {[%emt 0:05:55]} Bg7 {[%emt 0:04:16]} 14. O-O {[%emt 0:03:28]} Qd8 {[%emt 0:05:44]} 15. Rfd1 {[%emt 0:00:40]} Nd7 {[%emt 0:00:59]} 16. Ne4 {[%emt 0:02:29]} a5 {[%emt 0:09:53]} 17. Nd6 {[%emt 0:06:10]} Qb6 {[%emt 0:06:36]} 18. Qa3 {[%emt 0:05:22]} Qa6 {[%emt 0:20:58]} 19. Nc4 {[%emt 0:07:20]} Nb6 {[%emt 0:01:37]} 20. Nxa5 {[%emt 0:01:22]} Bd7 {[%emt 0:01:41]} 21. b4 {[%emt 0:03:58]} Nd5 {[%emt 0:01:17]} 22. Qb3 {[%emt 0:03:10]} Rfc8 {[%emt 0:02:07]} 23. a3 {[%emt 0:01:43]} Bf8 {[%emt 0:04:07]} 24. Nc4 {[%emt 0:03:44]} b5 {[%emt 0:04:07]} 25. Na5 {[%emt 0:00:43]} Bd6 {[%emt 0:00:35]} 26. e4 {[%emt 0:02:26]} Ne7 {[%emt 0:03:05]} 27. Qe3 {[%emt 0:00:20]} Bc7 {[%emt 0:00:53]} 28. Qg5 {[%emt 0:00:22]} Bd8 {[%emt 0:00:28]} 29. Qh6 {[%emt 0:00:45]} Kh8 {[%emt 0:00:49]} 30. Qf8+ {[%emt 0:00:36]} Ng8 {[%emt 0:00:03]} 31. Qxf7 {[%emt 0:01:04]} Ra7 {[%emt 0:00:10]} 32. d5 {[%emt 0:04:39]} Bf6 {[%emt 0:00:05]} 33. Bc3 {[%emt 0:01:37]} Bxc3 {[%emt 0:02:18]} 34. Rxc3 {[%emt 0:00:02]} exd5 {[%emt 0:00:33]} 35. Qf4 {[%emt 0:00:34]} Re8 {[%emt 0:01:06]} 36. exd5 {[%emt 0:00:17]} Qb6 {[%emt 0:02:28]} 37. dxc6 {[%emt 0:00:32]} Bxc6 {[%emt 0:00:25]} 38. Rxc6 {[%emt 0:00:26]} Qb8 {[%emt 0:00:20]} 39. Qd4+ {[%emt 0:00:21]} Rg7 {[%emt 0:00:34]} 40. g3 {[%emt 0:01:02]} Qe5 {[%emt 0:00:34]} 41. Qxe5 {[%emt 0:31:25]} Rxe5 {[%emt 0:30:02]} 42. Rc5 {[%emt 0:00:33]} Rge7 {[%emt 0:00:10]} 43. Nc6 {[%emt 0:01:00]} Re1+ {[%emt 0:00:05]} 44. Rxe1 {[%emt 0:00:07]} Rxe1+ {[%emt 0:00:08]} 45. Kg2 {[%emt 0:00:10]} Ra1 {[%emt 0:00:27]} 46. Rxb5 {[%emt 0:00:07]} Rxa3 {[%emt 0:00:11]} 47. Rb8 {[%emt 0:00:10]} Kg7 {[%emt 0:00:03]} 48. b5 {[%emt 0:00:19]} Nf6 {[%emt 0:00:16]} 49. b6 {[%emt 0:00:32]} Kh6 {[%emt 0:00:42]} 50. b7 {[%emt 0:01:39]} Nd7 {[%emt 0:00:15]} 51. Rd8 {[%emt 0:00:19]} 1-0